fUST/lending_fUST_20250120
["ID","MTS","AMOUNT","RATE_DAILY","PERIOD"]
[349673086,1737367844374,-500.0,0.00021917,3]
[349673087,1737367844383,-500.0,0.00021917,3]
[349673088,1737367844392,-500.0,0.00021917,3]
[349673089,1737367844403,-500.0,0.00021917,3]
[349673090,1737367844412,-500.0,0.00021917,3]
[349673091,1737367844421,-500.0,0.00021917,3]
[349673092,1737367844430,-151.0,0.00021917,2]
[349673093,1737367844439,-500.0,0.00021917,3]
[349673094,1737367844448,-1031.41,0.00021917,3]
[349673095,1737367844458,-573.5870555,0.00021917,3]
[349673096,1737367844466,-151.0,0.00021917,2]
[349673097,1737367844475,-500.0,0.00021917,3]
[349673098,1737367844484,-500.0,0.00021917,3]
[349673099,1737367844493,-500.0,0.00021917,3]
[349673100,1737367844502,-500.0,0.00021917,3]
[349673101,1737367844511,-500.0,0.00021917,3]
[349673102,1737367844520,-500.0,0.00021917,3]
[349673103,1737367844529,-500.0,0.00021917,3]
[349673104,1737367844538,-500.0,0.00021917,3]
[349673105,1737367844547,-500.0,0.00021917,3]
[349673106,1737367844556,-500.0,0.00021917,3]
[349673107,1737367844565,-500.0,0.00021917,3]
[349673108,1737367844574,-640.09,0.00021917,3]
[349673109,1737367844583,-500.0,0.00021917,3]
[349673110,1737367844592,-631.12,0.00021917,3]
[349673111,1737367844601,-500.0,0.00021917,3]
[349673112,1737367844610,-500.0,0.00021917,3]
[349673113,1737367844619,-503.21755625,0.00021917,3]
[349673114,1737367844634,-500.0,0.00021917,3]
[349673115,1737367844644,-151.0,0.00021917,2]
[349673116,1737367844654,-501.43054228,0.00021917,3]
[349673117,1737367844664,-500.0,0.00021917,3]
[349673118,1737367844673,-500.0,0.00021917,3]
[349673119,1737367844682,-516.82299581,0.00021917,3]
[349673120,1737367844692,-500.0,0.00021917,3]
[349673121,1737367844701,-500.0,0.00021917,3]
[349673122,1737367844710,-500.0,0.00021917,3]
[349673123,1737367844719,-500.0,0.00021917,3]
[349673124,1737367844729,-500.0,0.00021917,3]
[349673125,1737367844739,-500.0,0.00021917,3]
[349673126,1737367844748,-228.8299208,0.00021917,3]
[349673127,1737367844758,-500.0,0.00021917,3]
[349673128,1737367844767,-151.0,0.00021917,2]
[349673129,1737367844777,-500.0,0.00021917,3]
[349673130,1737367844787,-502.51615048,0.00021917,3]
[349673131,1737367844796,-501.93298872,0.00021917,3]
[349673132,1737367844806,-500.0,0.00021917,3]
[349673133,1737367844816,-500.0,0.00021917,3]
[349673134,1737367844826,-500.0,0.00021917,3]
[349673135,1737367844836,-500.0,0.00021917,3]
[349673136,1737367844846,-500.0,0.00021917,3]
[349673137,1737367844856,-500.0,0.00021917,3]
[349673138,1737367844866,-500.0,0.00021917,3]
[349673139,1737367844875,-4488.73,0.00021917,3]
[349673140,1737367844884,-500.0,0.00021917,3]
[349673141,1737367844894,-500.0,0.00021917,3]
[349673142,1737367844904,-500.0,0.00021917,3]
[349673143,1737367844914,-500.0,0.00021917,3]
[349673144,1737367844925,-151.0,0.00021917,2]
[349673145,1737367844934,-500.0,0.00021917,3]
[349673146,1737367844944,-500.0,0.00021917,3]
[349673147,1737367844953,-227.21892102,0.00021917,3]
[349673148,1737367844963,-500.0,0.00021917,3]
[349673149,1737367844972,-8017.8,0.00021917,3]
[349673150,1737367844982,-500.0,0.00021917,3]
[349673151,1737367844991,-500.0,0.00021917,3]
[349673152,1737367845001,-504.61227403,0.00021917,3]
[349673153,1737367845010,-1944.49,0.00021917,3]
[349673154,1737367845020,-500.0,0.00021917,3]
[349673155,1737367845029,-505.515998,0.00021917,3]
[349673156,1737367845039,-420.67907704,0.00021917,3]
[349673157,1737367845052,-500.0,0.00021917,3]
[349673158,1737367845061,-500.0,0.00021917,3]
[349673159,1737367845071,-500.0,0.00021917,3]
[349673160,1737367845080,-500.0,0.00021917,3]
[349673161,1737367845091,-500.0,0.00021917,3]
[349673162,1737367845100,-500.0,0.00021917,3]
[349673163,1737367845109,-500.0,0.00021917,3]
[349673164,1737367845118,-500.0,0.00021917,3]
[349673165,1737367845129,-500.0,0.00021917,3]
[349673166,1737367845142,-516.99,0.00021917,3]
[349673167,1737367845152,-500.0,0.00021917,3]
[349673168,1737367845162,-500.0,0.00021917,3]
[349673169,1737367845172,-500.0,0.00021917,3]
[349673170,1737367845181,-561.73,0.00021917,3]
[349673171,1737367845191,-500.0,0.00021917,3]
[349673172,1737367845200,-500.0,0.00021917,3]
[349673173,1737367845210,-181.45962,0.00021917,2]
[349673174,1737367845219,-500.0,0.00021917,3]
[349673175,1737367845233,-181.45962,0.00021917,2]
[349673176,1737367845247,-500.0,0.00021917,3]
[349673177,1737367845259,-2660.6,0.00021917,3]
[349673178,1737367845276,-488.76015863,0.00021917,3]
[349673179,1737367845295,-501.09404817,0.00021917,3]
[349673180,1737367845316,-500.0,0.00021917,3]
[349673181,1737367845338,-500.0,0.00021917,3]
[349673182,1737367845355,-731.48,0.00021917,3]
[349673183,1737367845366,-500.0,0.00021917,3]
[349673184,1737367845376,-500.0,0.00021917,3]
[349673185,1737367845387,-500.0,0.00021917,3]
[349673186,1737367845398,-500.0,0.00021917,3]
[349673188,1737367845408,-559.28,0.00021917,3]
[349673189,1737367845419,-248.641962,0.00021917,2]
[349673190,1737367845430,-516.60465805,0.00021917,3]
[349673191,1737367845440,-500.0,0.00021917,3]
[349673192,1737367845451,-248.641962,0.00021917,2]
[349673193,1737367845461,-500.0,0.00021917,3]
[349673194,1737367845472,-547.19,0.00021917,3]
[349673196,1737367845483,-500.0,0.00021917,3]
[349673197,1737367845492,-500.0,0.00021917,3]
[349673198,1737367845502,-500.0,0.00021917,3]
[349673199,1737367845511,-500.0,0.00021917,3]
[349673200,1737367845520,-537.63,0.00021917,3]
[349673201,1737367845530,-500.0,0.00021917,3]
[349673203,1737367845539,-500.0,0.00021917,3]
[349673205,1737367845549,-331.934428,0.00021917,2]
[349673207,1737367845558,-500.0,0.00021917,3]
[349673209,1737367845568,-152.999976,0.00021917,2]
[349673211,1737367845578,-500.0,0.00021917,3]
[349673213,1737367845587,-331.934428,0.00021917,2]
[349673215,1737367845597,-500.0,0.00021917,2]
[349673217,1737367845606,-629.41,0.00021917,3]
[349673218,1737367845615,-500.0,0.00021917,3]
[349673219,1737367845625,-642.69,0.00021917,3]
[349673220,1737367845634,-150.78022881,0.00021917,3]
[349673221,1737367845644,-500.0,0.00021917,3]
[349673222,1737367845654,-500.0,0.00021917,3]
[349673223,1737367845663,-500.0,0.00021917,3]
[349673224,1737367845673,-500.0,0.00021917,3]
[349673225,1737367845683,-501.62632194,0.00021917,3]
[349673226,1737367845693,-500.0,0.00021917,3]
[349673227,1737367845702,-500.0,0.00021917,3]
[349673228,1737367845712,-500.0,0.00021917,3]
[349673229,1737367845722,-500.0,0.00021917,3]
[349673230,1737367845733,-500.0,0.00021917,3]
[349673231,1737367845743,-500.0,0.00021917,3]
[349673233,1737367845752,-500.0,0.00021917,3]
[349673235,1737367845762,-153.748275,0.00021917,2]
[349673237,1737367845771,-500.0,0.00021917,3]
[349673239,1737367845781,-2742.8,0.00021917,3]
[349673240,1737367845790,-500.0,0.00021917,3]
[349673241,1737367845799,-511.43882886,0.00021917,3]
[349673243,1737367845809,-614.21,0.00021917,3]
[349673244,1737367845818,-582.78,0.00021917,3]
[349673245,1737367845827,-500.0,0.00021917,3]
[349673246,1737367845837,-500.0,0.00021917,3]
[349673247,1737367845847,-500.0,0.00021917,3]
[349673248,1737367845856,-500.0,0.00021917,3]
[349673249,1737367845866,-151.0,0.00021917,2]
[349673250,1737367845875,-521.13,0.00021917,3]
[349673251,1737367845884,-500.0,0.00021917,3]
[349673252,1737367845894,-500.0,0.00021917,3]
[349673253,1737367845904,-151.0,0.00021917,2]
[349673254,1737367845914,-500.0,0.00021917,3]
[349673255,1737367845923,-500.0,0.00021917,3]
[349673256,1737367845932,-500.0,0.00021917,3]
[349673257,1737367845941,-460.62405417,0.00021917,3]
[349673258,1737367845950,-500.0,0.00021917,3]
[349673259,1737367845959,-500.0,0.00021917,3]
[349673260,1737367845969,-2685.86,0.00021917,3]
[349673261,1737367845978,-151.0,0.00021917,2]
[349673262,1737367845988,-500.0,0.00021917,3]
[349673263,1737367845998,-3602.36,0.00021917,3]
[349673264,1737367846010,-9545.37262414,0.00021954,3]
[349673265,1737367846019,-500.0,0.00021973,2]
[349673266,1737367846029,-500.0,0.00021973,2]
[349673267,1737367846038,-1000.0,0.00022,22]
[349673268,1737367846048,-854.0,0.00022,2]
[349673269,1737367846060,-2632.67097794,0.00022003,3]
[349673270,1737367846071,-151.96080063,0.0002201,2]
[349673271,1737367846080,-500.0,0.00022054,3]
[349673272,1737367846089,-500.0,0.00022054,3]
[349673273,1737367846099,-500.0,0.00022054,3]
[349673274,1737367846108,-500.0,0.00022054,3]
[349673275,1737367846117,-500.0,0.00022054,3]
[349673276,1737367846126,-500.0,0.00022054,3]
[349673277,1737367846136,-500.0,0.00022054,3]
[349673278,1737367846145,-500.0,0.00022054,3]
[349673279,1737367846158,-500.0,0.00022054,3]
[349673280,1737367846168,-500.0,0.00022054,3]
[349673281,1737367846177,-500.0,0.00022054,3]
[349673282,1737367846186,-548.09,0.00022054,3]
[349673283,1737367846195,-500.0,0.00022054,3]
[349673284,1737367846205,-615.69,0.00022054,3]
[349673285,1737367846215,-500.0,0.00022054,3]
[349673286,1737367846224,-500.0,0.00022054,3]
[349673287,1737367846233,-202.63,0.00022054,3]
[349673288,1737367846243,-508.456621,0.00022054,3]
[349673289,1737367846252,-527.41,0.00022054,3]
[349673290,1737367846262,-500.0,0.00022054,3]
[349673291,1737367846271,-500.0,0.00022054,3]
[349673292,1737367846281,-500.0,0.00022054,3]
[349673293,1737367846290,-500.0,0.00022054,3]
[349673294,1737367846299,-500.0,0.00022054,3]
[349673295,1737367846309,-278.8,0.00022054,3]
[349673296,1737367846318,-500.0,0.00022054,3]
[349673297,1737367846328,-500.0,0.00022054,3]
[349673298,1737367846338,-500.0,0.00022054,3]
[349673299,1737367846347,-500.0,0.00022054,3]
[349673300,1737367846356,-500.0,0.00022054,3]
[349673301,1737367846366,-360.69,0.00022054,3]
[349673302,1737367846375,-500.0,0.00022054,3]
[349673303,1737367846385,-285.708602,0.00022054,7]
[349673304,1737367846395,-500.0,0.00022054,3]
[349673305,1737367846407,-500.0,0.00022054,3]
[349673306,1737367846416,-500.0,0.00022054,3]
[349673307,1737367846426,-285.708602,0.00022054,7]
[349673308,1737367846436,-500.0,0.00022054,3]
[349673309,1737367846446,-474.44886112,0.00022054,3]
[349673310,1737367846455,-500.0,0.00022054,3]
[349673311,1737367846465,-500.0,0.00022054,3]
[349673312,1737367846474,-500.0,0.00022054,3]
[349673313,1737367846484,-500.0,0.00022054,3]
[349673314,1737367846493,-500.0,0.00022054,3]
[349673315,1737367846503,-500.0,0.00022054,3]
[349673316,1737367846513,-500.0,0.00022054,3]
[349673317,1737367846522,-500.0,0.00022054,3]
[349673318,1737367846532,-500.0,0.00022054,3]
[349673319,1737367846542,-500.0,0.00022054,3]
[349673320,1737367846551,-500.0,0.00022054,3]
[349673321,1737367846561,-500.0,0.00022054,3]
[349673322,1737367846570,-500.0,0.00022054,3]
[349673323,1737367846579,-151.0,0.00022054,7]
[349673324,1737367846589,-500.0,0.00022054,3]
[349673325,1737367846598,-401.82,0.00022054,3]
[349673326,1737367846608,-151.0,0.00022054,7]
[349673327,1737367846617,-299.07,0.00022054,3]
[349673328,1737367846626,-500.0,0.00022054,3]
[349673329,1737367846635,-500.0,0.00022054,3]
[349673330,1737367846645,-500.0,0.00022054,3]
[349673331,1737367846656,-500.0,0.00022054,3]
[349673332,1737367846665,-500.0,0.00022054,3]
[349673333,1737367846675,-500.0,0.00022054,3]
[349673334,1737367846684,-500.0,0.00022054,3]
[349673335,1737367846693,-500.0,0.00022054,3]
[349673336,1737367846703,-500.0,0.00022054,3]
[349673337,1737367846713,-500.0,0.00022054,3]
[349673338,1737367846722,-500.0,0.00022054,3]
[349673339,1737367846731,-500.0,0.00022054,3]
[349673340,1737367846741,-500.0,0.00022054,3]
[349673341,1737367846750,-500.0,0.00022054,3]
[349673342,1737367846760,-500.0,0.00022054,3]
[349673343,1737367846770,-624.957587,0.00022054,7]
[349673344,1737367846779,-482.42374177,0.00022054,3]
[349673345,1737367846789,-624.957587,0.00022054,7]
[349673346,1737367846798,-513.77078094,0.00022054,3]
[349673347,1737367846807,-153.49,0.00022054,3]
[349673348,1737367846817,-500.0,0.00022054,2]
[349673349,1737367846826,-477.63,0.00022054,3]
[349673350,1737367846835,-500.0,0.00022054,3]
[349673351,1737367846845,-500.0,0.00022054,3]
[349673352,1737367846855,-500.0,0.00022054,3]
[349673353,1737367846865,-500.0,0.00022054,3]
[349673354,1737367846875,-500.0,0.00022054,3]
[349673355,1737367846884,-500.0,0.00022054,3]
[349673356,1737367846893,-305.19755397,0.00022054,3]
[349673357,1737367846903,-518.79,0.00022054,3]
[349673358,1737367846912,-500.0,0.00022054,3]
[349673359,1737367846921,-1031.41,0.00022054,3]
[349673360,1737367846931,-500.0,0.00022054,3]
[349673361,1737367846940,-500.0,0.00022054,3]
[349673362,1737367846949,-500.0,0.00022054,3]
[349673363,1737367846959,-307.22,0.00022054,3]
[349673364,1737367846969,-176.128499,0.00022054,7]
[349673365,1737367846978,-500.0,0.00022054,3]
[349673366,1737367847085,-500.0,0.00022054,3]
[349673367,1737367847114,-500.0,0.00022054,3]
[349673368,1737367847125,-500.0,0.00022054,3]
[349673369,1737367847134,-184.15546401,0.00022054,3]
[349673370,1737367847144,-500.0,0.00022054,3]
[349673371,1737367847156,-4488.73,0.00022054,3]
[349673372,1737367847166,-500.0,0.00022054,3]
[349673373,1737367847175,-188.22,0.00022054,3]
[349673374,1737367847185,-151.0,0.00022054,7]
[349673375,1737367847194,-500.0,0.00022054,3]
[349673376,1737367847203,-500.0,0.00022054,3]
[349673377,1737367847214,-500.0,0.00022054,3]
[349673378,1737367847223,-8017.8,0.00022054,3]
[349673379,1737367847233,-500.0,0.00022054,3]
[349673380,1737367847242,-1944.49,0.00022054,3]
[349673381,1737367847252,-480.16994304,0.00022054,3]
[349673382,1737367847262,-507.08524369,0.00022054,3]
[349673383,1737367847271,-439.88,0.00022054,3]
[349673384,1737367847281,-500.0,0.00022054,3]
[349673385,1737367847290,-500.0,0.00022054,3]
[349673386,1737367847300,-500.0,0.00022054,3]
[349673387,1737367847310,-390.04774368,0.00022054,3]
[349673388,1737367847319,-561.73,0.00022054,3]
[349673389,1737367847330,-181.45962,0.00022054,7]
[349673390,1737367847340,-181.45962,0.00022054,7]
[349673391,1737367847349,-500.0,0.00022054,3]
[349673392,1737367847358,-181.45962,0.00022054,7]
[349673393,1737367847368,-181.45962,0.00022054,7]
[349673394,1737367847377,-2660.6,0.00022054,3]
[349673395,1737367847387,-731.48,0.00022054,3]
[349673396,1737367847396,-500.0,0.00022054,3]
[349673397,1737367847407,-559.28,0.00022054,3]
[349673398,1737367847417,-248.641962,0.00022054,7]
[349673399,1737367847426,-248.641962,0.00022054,7]
[349673400,1737367847436,-500.0,0.00022054,3]
[349673401,1737367847446,-248.641962,0.00022054,7]
[349673402,1737367847455,-248.641962,0.00022054,7]
[349673403,1737367847464,-500.0,0.00022054,3]
[349673404,1737367847474,-515.11468898,0.00022054,3]
[349673405,1737367847483,-500.0,0.00022054,3]
[349673406,1737367847493,-162.34728794,0.00022054,3]
[349673407,1737367847502,-331.934428,0.00022054,7]
[349673408,1737367847512,-331.934428,0.00022054,7]
[349673409,1737367847521,-500.0,0.00022054,3]
[349673410,1737367847531,-500.0,0.00022054,3]
[349673411,1737367847541,-331.934428,0.00022054,7]
[349673412,1737367847550,-331.934428,0.00022054,7]
[349673413,1737367847560,-629.41,0.00022054,3]
[349673414,1737367847569,-500.0,0.00022054,3]
[349673415,1737367847578,-500.0,0.00022054,3]
[349673416,1737367847588,-500.0,0.00022054,3]
[349673417,1737367847597,-500.0,0.00022054,3]
[349673418,1737367847606,-500.0,0.00022054,3]
[349673419,1737367847615,-500.0,0.00022054,3]
[349673420,1737367847625,-2742.8,0.00022054,3]
[349673421,1737367847634,-582.78,0.00022054,3]
[349673422,1737367847645,-500.0,0.00022054,3]
[349673423,1737367847656,-212.74306232,0.00022054,3]
[349673424,1737367847665,-500.0,0.00022054,3]
[349673425,1737367847675,-151.0,0.00022054,7]
[349673426,1737367847684,-151.0,0.00022054,7]
[349673427,1737367847694,-329.16893507,0.00022054,3]
[349673428,1737367847703,-151.0,0.00022054,7]
[349673429,1737367847713,-151.0,0.00022054,7]
[349673430,1737367847722,-500.0,0.00022054,3]
[349673431,1737367847731,-335.93607242,0.00022054,3]
[349673432,1737367847741,-2685.86,0.00022054,3]
[349673433,1737367847751,-151.0,0.00022054,7]
[349673434,1737367847760,-151.0,0.00022054,7]
[349673435,1737367847770,-3602.36,0.00022054,3]
[349673436,1737367847779,-2632.67097794,0.00022107,3]
[349673437,1737367847790,-624.957587,0.00022107,7]
[349673438,1737367847800,-624.957587,0.00022107,7]
[349673439,1737367847809,-2064.0,0.00022169,2]
[349673440,1737367847818,-536.0,0.00022169,2]
[349673441,1737367847828,-1642.739,0.00022169,2]
[349673442,1737367847838,-500.0,0.00022191,3]
[349673443,1737367847847,-500.0,0.00022191,3]
[349673444,1737367847857,-500.0,0.00022191,3]
[349673445,1737367847867,-500.0,0.00022191,3]
[349673446,1737367847876,-500.0,0.00022191,3]
[349673447,1737367847885,-500.0,0.00022191,3]
[349673448,1737367847895,-285.708602,0.00022191,7]
[349673449,1737367847907,-285.708602,0.00022191,7]
[349673450,1737367847917,-500.0,0.00022191,3]
[349673451,1737367847927,-151.0,0.00022191,7]
[349673452,1737367847936,-584.35,0.00022191,3]
[349673453,1737367847945,-151.0,0.00022191,7]
[349673454,1737367847955,-624.957587,0.00022191,7]
[349673455,1737367847965,-624.957587,0.00022191,7]
[349673456,1737367847974,-500.0,0.00022191,2]
[349673457,1737367847983,-500.0,0.00022191,3]
[349673458,1737367847993,-500.0,0.00022191,3]
[349673459,1737367848003,-1031.41,0.00022191,3]
[349673460,1737367848012,-500.0,0.00022191,3]
[349673461,1737367848021,-500.0,0.00022191,3]
[349673462,1737367848031,-500.0,0.00022191,3]
[349673463,1737367848042,-500.0,0.00022191,3]
[349673464,1737367848055,-4488.73,0.00022191,3]
[349673465,1737367848065,-500.0,0.00022191,3]
[349673466,1737367848075,-500.0,0.00022191,3]
[349673467,1737367848085,-8017.8,0.00022191,3]
[349673468,1737367848097,-1944.49,0.00022191,3]
[349673469,1737367848107,-500.0,0.00022191,3]
[349673470,1737367848117,-561.73,0.00022191,3]
[349673471,1737367848128,-181.45962,0.00022191,7]
[349673472,1737367848138,-181.45962,0.00022191,7]
[349673473,1737367848147,-2660.6,0.00022191,3]
[349673474,1737367848159,-731.48,0.00022191,3]
[349673475,1737367848170,-173.15,0.00022191,3]
[349673476,1737367848179,-559.28,0.00022191,3]
[349673477,1737367848189,-248.641962,0.00022191,7]
[349673478,1737367848199,-248.641962,0.00022191,7]
[349673479,1737367848209,-500.0,0.00022191,3]
[349673480,1737367848218,-331.934428,0.00022191,7]
[349673481,1737367848227,-500.0,0.00022191,3]
[349673482,1737367848237,-500.0,0.00022191,3]
[349673483,1737367848247,-331.934428,0.00022191,7]
[349673484,1737367848257,-629.41,0.00022191,3]
[349673485,1737367848267,-500.0,0.00022191,3]
[349673486,1737367848276,-500.0,0.00022191,3]
[349673487,1737367848285,-500.0,0.00022191,3]
[349673488,1737367848295,-500.0,0.00022191,3]
[349673489,1737367848305,-500.0,0.00022191,3]
[349673490,1737367848314,-2742.8,0.00022191,3]
[349673491,1737367848324,-582.78,0.00022191,3]
[349673492,1737367848333,-500.0,0.00022191,3]
[349673493,1737367848342,-500.0,0.00022191,3]
[349673494,1737367848352,-161.332266,0.00022191,7]
[349673495,1737367848362,-151.0,0.00022191,7]
[349673496,1737367848372,-500.0,0.00022191,3]
[349673497,1737367848381,-2685.86,0.00022191,3]
[349673498,1737367848391,-151.0,0.00022191,7]
[349673499,1737367848401,-2632.67097794,0.0002221,3]
[349673500,1737367848411,-2632.67097794,0.00022314,3]
[349673501,1737367848420,-630.47639763,0.00022323,2]
[349673502,1737367848432,-196.84734716,0.00022323,2]
[349673503,1737367848442,-500.0,0.00022323,2]
[349673504,1737367848452,-501.08916729,0.00022323,2]
[349673505,1737367848462,-497.2556,0.00022328,3]
[349673506,1737367848472,-500.0,0.00022328,3]
[349673507,1737367848482,-503.80600499,0.00022328,3]
[349673508,1737367848492,-500.0,0.00022328,3]
[349673509,1737367848502,-500.0,0.00022328,3]
[349673510,1737367848511,-292.21904948,0.00022328,3]
[349673511,1737367848521,-285.708602,0.00022328,7]
[349673512,1737367848530,-285.708602,0.00022328,7]
[349673513,1737367848540,-500.0,0.00022328,3]
[349673514,1737367848549,-151.0,0.00022328,7]
[349673515,1737367848559,-151.0,0.00022328,7]
[349673516,1737367848569,-624.957587,0.00022328,7]
[349673517,1737367848579,-624.957587,0.00022328,7]
[349673518,1737367848588,-500.0,0.00022328,2]
[349673519,1737367848598,-500.0,0.00022328,3]
[349673520,1737367848608,-540.88,0.00022328,3]
[349673521,1737367848618,-1031.41,0.00022328,3]
[349673522,1737367848627,-500.0,0.00022328,3]
[349673523,1737367848636,-500.0,0.00022328,3]
[349673524,1737367848646,-500.0,0.00022328,3]
[349673525,1737367848656,-500.0,0.00022328,3]
[349673526,1737367848665,-4488.73,0.00022328,3]
[349673527,1737367848675,-310.57046255,0.00022328,3]
[349673528,1737367848685,-8017.8,0.00022328,3]
[349673529,1737367848695,-1944.49,0.00022328,3]
[349673530,1737367848705,-500.0,0.00022328,3]
[349673531,1737367848715,-561.73,0.00022328,3]
[349673532,1737367848724,-181.45962,0.00022328,7]
[349673533,1737367848735,-181.45962,0.00022328,7]
[349673534,1737367848744,-2660.6,0.00022328,3]
[349673535,1737367848754,-731.48,0.00022328,3]
[349673536,1737367848764,-559.28,0.00022328,3]
[349673537,1737367848773,-248.641962,0.00022328,7]
[349673538,1737367848782,-248.641962,0.00022328,7]
[349673539,1737367848792,-500.0,0.00022328,3]
[349673540,1737367848801,-331.934428,0.00022328,7]
[349673541,1737367848811,-457.05603816,0.00022328,3]
[349673542,1737367848821,-500.0,0.00022328,3]
[349673543,1737367848831,-331.934428,0.00022328,7]
[349673544,1737367848840,-629.41,0.00022328,3]
[349673545,1737367848849,-500.0,0.00022328,3]
[349673546,1737367848859,-500.0,0.00022328,3]
[349673547,1737367848868,-436.64525057,0.00022328,3]
[349673548,1737367848879,-309.84127768,0.00022328,3]
[349673549,1737367848889,-500.0,0.00022328,3]
[349673550,1737367848898,-2742.8,0.00022328,3]
[349673551,1737367848909,-582.78,0.00022328,3]
[349673552,1737367848919,-500.0,0.00022328,3]
[349673553,1737367848928,-500.0,0.00022328,3]
[349673554,1737367848939,-151.0,0.00022328,7]
[349673555,1737367848951,-500.0,0.00022328,3]
[349673556,1737367848961,-2685.86,0.00022328,3]
[349673557,1737367848970,-151.0,0.00022328,7]
[349673558,1737367848980,-2632.67097794,0.00022417,3]
[349673559,1737367848990,-500.0,0.00022465,3]
[349673560,1737367848999,-500.0,0.00022465,3]
[349673561,1737367849009,-500.0,0.00022465,3]
[349673562,1737367849019,-285.708602,0.00022465,7]
[349673563,1737367849029,-285.708602,0.00022465,7]
[349673564,1737367849039,-500.0,0.00022465,3]
[349673565,1737367849052,-151.0,0.00022465,7]
[349673566,1737367849062,-151.0,0.00022465,7]
[349673567,1737367849071,-500.0,0.00022465,2]
[349673568,1737367849081,-1031.41,0.00022465,3]
[349673569,1737367849093,-500.0,0.00022465,3]
[349673570,1737367849103,-500.0,0.00022465,3]
[349673571,1737367849138,-500.0,0.00022465,3]
[349673572,1737367849148,-500.0,0.00022465,3]
[349673573,1737367849158,-4488.73,0.00022465,3]
[349673574,1737367849168,-8017.8,0.00022465,3]
[349673575,1737367849178,-1944.49,0.00022465,3]
[349673576,1737367849187,-500.0,0.00022465,3]
[349673577,1737367849197,-561.73,0.00022465,3]
[349673578,1737367849206,-181.45962,0.00022465,7]
[349673579,1737367849215,-181.45962,0.00022465,7]
[349673580,1737367849225,-2660.6,0.00022465,3]
[349673581,1737367849235,-731.48,0.00022465,3]
[349673582,1737367849246,-559.28,0.00022465,3]
[349673583,1737367849255,-248.641962,0.00022465,7]
[349673584,1737367849269,-248.641962,0.00022465,7]
[349673585,1737367849278,-296.2,0.00022465,3]
[349673586,1737367849291,-331.934428,0.00022465,7]
[349673587,1737367849306,-500.0,0.00022465,3]
[349673588,1737367849319,-331.934428,0.00022465,7]
[349673589,1737367849328,-629.41,0.00022465,3]
[349673590,1737367849339,-500.0,0.00022465,3]
[349673591,1737367849348,-500.0,0.00022465,3]
[349673592,1737367849358,-500.0,0.00022465,3]
[349673593,1737367849368,-2742.8,0.00022465,3]
[349673594,1737367849378,-582.78,0.00022465,3]
[349673595,1737367849387,-500.0,0.00022465,3]
[349673596,1737367849397,-500.0,0.00022465,3]
[349673597,1737367849408,-151.0,0.00022465,7]
[349673598,1737367849417,-500.0,0.00022465,3]
[349673599,1737367849427,-2685.86,0.00022465,3]
[349673600,1737367849436,-151.0,0.00022465,7]